bitfinex-derivatives/quotes_SOLF0:USTF0_20240918
["timestamp","ask_amount","ask_price","bid_price","bid_amount"]
[1726659933262,9.5,129.71,129.68,6.73602391]
[1726659936260,9.5,129.72,129.68,16.23602391]
[1726659945276,154.32,129.8,129.69,9.5]
[1726659945659,9.5,129.74,129.69,9.5]
[1726659949167,9.5,129.73,129.68,6.73602391]
[1726659949471,9.5,129.71,129.68,6.73602391]
[1726659950177,9.5,129.7,129.68,3.83642391]
[1726659950468,9.5,129.7,129.65,9.5]
[1726659950867,9.5,129.7,129.65,13.42312909]
[1726659955673,9.5,129.67,129.65,3.92312909]
[1726659955971,9.5,129.67,129.64,2.9835]
[1726659956276,9.5,129.65,129.64,3.80267572]
[1726659956466,9.5,129.65,129.62,1.4234]
[1726659956664,9.5,129.65,129.61,9.5]
[1726659957171,9.5,129.64,129.6,9.5]
[1726659957375,9.5,129.64,129.58,1.5031]
[1726659957376,9.5,129.63,129.58,1.5031]
[1726659957571,9.5,129.63,129.58,11.0031]
[1726659959470,9.5,129.66,129.62,9.5]
[1726659959677,9.5,129.66,129.62,13.28686845]
[1726659960477,9.5,129.67,129.62,13.28686845]
[1726659960676,9.5,129.69,129.65,9.5]
[1726659961271,9.5,129.68,129.65,9.5]
[1726659961468,9.5,129.68,129.65,13.36474067]
[1726659965477,9.5,129.7,129.66,9.5]
[1726659965669,6.1,129.7,129.66,9.5]
[1726659966276,6.1,129.7,129.66,13.32526134]
[1726659967582,9.5,129.71,129.66,13.32526134]
[1726659970673,4.25641031,129.79,129.7,9.5]
[1726659970882,158.05453095,129.86,129.71,4.3349]
[1726659971083,337.0,129.91,129.71,4.3349]
[1726659971084,3.80894559,129.89,129.74,9.5]
[1726659971386,9.5,129.78,129.74,13.28155698]
[1726659978103,162.35100512,129.89,129.74,13.28155698]
[1726659978402,9.5,129.79,129.74,13.28155698]
[1726659982201,9.5,129.78,129.74,3.78155698]
[1726659982498,9.5,129.78,129.71,4.3349]
[1726659982499,9.5,129.77,129.73,9.5]
[1726659982695,9.5,129.77,129.73,13.28337089]
[1726659983603,162.35100512,129.89,129.75,9.5]
[1726659983604,158.05453095,129.88,129.75,9.5]
[1726659983793,499.35100512,129.89,129.75,9.5]
[1726659983794,9.5,129.8,129.75,9.5]
[1726659984102,9.5,129.79,129.74,9.5]
[1726659984297,9.5,129.79,129.74,3.92525212]
[1726659984500,9.5,129.79,129.74,9.5]
[1726659984699,9.5,129.79,129.74,13.33387752]
[1726659984901,162.35100512,129.89,129.74,13.33387752]
[1726659985102,9.5,129.78,129.74,13.33387752]
[1726659988101,162.31128452,129.87,129.74,13.33387752]
[1726659988300,9.5,129.78,129.74,13.33387752]
[1726659989710,162.31128452,129.87,129.75,9.5]
[1726659990011,9.5,129.79,129.75,9.5]
[1726659990302,9.2316849,129.79,129.75,9.5]
[1726659990905,9.5,129.79,129.74,3.83387752]
[1726659991104,9.5,129.78,129.74,9.5]
[1726659991408,9.5,129.78,129.74,13.38815723]
[1726659993310,154.26,129.87,129.74,13.38815723]
[1726659993609,9.5,129.78,129.74,13.38815723]
[1726659996705,9.5,129.79,129.74,13.38815723]
[1726660003508,9.5,129.79,129.74,3.88815723]
[1726660003710,9.5,129.77,129.72,9.5]
[1726660005819,9.5,129.77,129.74,9.5]
[1726660006018,9.5,129.77,129.74,13.38909632]
[1726660006218,9.5,129.78,129.74,13.38909632]
[1726660006616,9.5,129.78,129.75,9.5]
[1726660009926,9.5,129.78,129.74,13.38909632]
[1726660011420,312.29453095,129.87,129.74,13.38909632]
[1726660011618,9.5,129.78,129.74,13.38909632]
[1726660012021,154.24,129.87,129.74,13.38909632]
[1726660012219,9.5,129.79,129.74,13.38909632]
[1726660012722,9.5,129.79,129.75,9.5]
[1726660013420,9.5,129.79,129.75,13.42110087]
[1726660014127,9.5,129.8,129.75,13.42110087]
[1726660017728,154.24,129.87,129.76,9.5]
[1726660017924,9.5,129.81,129.77,9.5]
[1726660018520,154.24,129.87,129.77,9.5]
[1726660018726,9.5,129.81,129.77,13.35122674]
[1726660019425,9.5,129.83,129.78,9.5]
[1726660020130,9.5,129.83,129.78,13.40045038]
[1726660020321,154.24,129.89,129.78,3.90045038]
[1726660020527,154.24,129.89,129.82,9.5]
[1726660020722,9.5,129.86,129.82,9.5]
[1726660020922,150.44,129.89,129.82,9.5]
[1726660021127,9.5,129.86,129.82,9.5]
[1726660021420,9.5,129.86,129.82,13.4185687]
[1726660021621,150.44,129.89,129.82,13.4185687]
[1726660021826,9.5,129.86,129.82,13.4185687]
[1726660023219,9.5,129.87,129.82,13.4185687]
[1726660024828,150.44,129.89,129.82,13.4185687]
[1726660025031,9.5,129.87,129.82,13.4185687]
[1726660025732,150.44,129.89,129.82,13.4185687]
[1726660025933,9.5,129.87,129.82,13.4185687]
[1726660027722,150.44,129.89,129.83,9.5]
[1726660027928,9.5,129.87,129.83,9.5]
[1726660029228,9.5,129.86,129.82,3.9185687]
[1726660029428,9.5,129.86,129.82,9.5]
[1726660029629,9.5,129.86,129.82,13.39286693]
[1726660034730,162.24622727,129.95,129.82,3.89286693]
[1726660034937,9.5,129.83,129.71,158.5149]
[1726660035237,9.5,129.8,129.76,9.5]
[1726660035432,9.5,129.8,129.76,13.3556117]
[1726660036735,9.5,129.81,129.77,9.5]
[1726660036935,9.5,129.81,129.77,2.9823]
[1726660037130,9.5,129.8,129.77,2.9823]
[1726660039732,158.05453095,129.9,129.79,9.5]
[1726660039930,6.5,129.88,129.83,9.5]
[1726660040135,8.04596372,129.96,129.8,1.5341]
[1726660040338,9.5,129.88,129.84,9.5]
[1726660040541,9.5,129.88,129.84,13.44014789]
[1726660042738,8.04596372,129.96,129.85,9.5]
[1726660043039,337.0,129.98,129.88,9.5]
[1726660043040,9.5,129.93,129.88,9.5]
[1726660043736,9.5,129.93,129.88,13.34191683]
[1726660045039,9.5,129.89,129.88,3.84191683]
[1726660045238,9.5,129.89,129.83,9.5]
[1726660045441,9.5,129.87,129.83,13.41576774]
[1726660046144,154.14,129.97,129.84,9.5]
[1726660046337,9.5,129.89,129.84,9.5]
[1726660046937,9.5,129.89,129.84,10.9188]
[1726660049344,9.5,129.88,129.84,10.9188]
[1726660049545,154.14,129.97,129.84,1.4188]
[1726660049848,9.5,129.86,129.84,1.4188]
[1726660050449,8.69543619,129.86,129.84,1.4188]
[1726660051850,9.5,129.88,129.84,1.4188]
[1726660052939,9.5,129.88,129.84,12.4455]
[1726660053448,9.5,129.89,129.84,12.4455]
[1726660053648,9.5,129.89,129.85,9.5]
[1726660054144,154.14,129.97,129.85,9.5]
[1726660054358,9.5,129.89,129.85,9.5]
[1726660056243,337.0,130.04,129.89,28.0]
[1726660056454,337.0,130.04,129.91,9.5]
[1726660056455,9.5,129.96,129.91,9.5]
[1726660057849,9.5,129.95,129.91,9.5]
[1726660058051,9.5,129.95,129.9,1.4689]
[1726660058248,9.5,129.92,129.9,1.4689]
[1726660059148,2.8233,130.02,129.9,1.4689]
[1726660059460,9.5,130.02,129.98,9.5]
[1726660059760,9.5,130.02,129.98,3.75617086]
[1726660059947,14.78,130.03,129.95,14.78]
[1726660060150,14.78,130.03,129.95,18.71560455]
[1726660060347,2.9085,130.07,129.9,1.4689]
[1726660060551,14.78,129.97,129.9,5.35252268]
[1726660060756,14.78,129.97,129.9,1.4689]
[1726660061357,14.78,129.97,129.91,1.498]
[1726660065358,154.08,130.06,129.91,1.498]
[1726660065554,14.78,129.97,129.91,1.498]
[1726660067356,14.78,129.96,129.91,1.498]
[1726660067761,14.78,129.96,129.9,6.76811601]
[1726660068065,14.78,129.95,129.9,5.33981601]
[1726660071458,14.78,129.96,129.9,5.33981601]
[1726660078858,2.9274,129.99,129.9,5.33981601]
[1726660078859,14.78,129.95,129.9,5.33981601]
[1726660080468,2.9274,129.99,129.9,5.33981601]
[1726660080469,2.9274,129.99,129.9,3.87091601]
[1726660080667,2.9274,129.99,129.87,1.4435]
[1726660080668,14.78,129.93,129.87,1.4435]
[1726660080868,14.78,129.93,129.84,14.78]
[1726660081069,14.78,129.93,129.84,18.67260395]
[1726660081866,2.9274,129.99,129.84,3.89260395]
[1726660082065,9.46,129.91,129.86,9.46]
[1726660082274,9.46,129.91,129.86,13.24285008]
[1726660083778,9.46,129.91,129.86,3.78285008]
[1726660083963,9.46,129.91,129.86,9.46]
[1726660084168,9.46,129.91,129.86,13.25768395]
[1726660085478,9.46,129.9,129.86,13.25768395]
[1726660086777,2.9274,129.99,129.86,13.25768395]
[1726660087078,9.46,129.91,129.86,13.25768395]
[1726660089075,9.46,129.9,129.86,13.25768395]
[1726660090166,9.46,129.9,129.86,3.79768395]
[1726660090369,9.46,129.9,129.85,9.46]
[1726660090974,5.66,129.9,129.85,9.46]
[1726660091377,5.66,129.9,129.85,13.32037829]
[1726660094277,5.66,129.9,129.86,9.46]
[1726660094581,9.46,129.91,129.86,10.9333]
[1726660097984,9.46,129.91,129.87,9.46]
[1726660098878,2.9274,129.99,129.86,2.9471]
[1726660099081,9.46,130.0,129.87,1.5211]
[1726660099282,9.46,129.98,129.95,9.46]
[1726660099584,9.46,129.98,129.95,3.90458996]
[1726660099781,9.46,129.98,129.93,9.46]
[1726660104283,9.46,129.99,129.94,9.46]
[1726660104479,9.46,129.99,129.94,13.30384442]
[1726660108392,150.83663095,130.06,129.94,13.30384442]
[1726660108582,9.46,129.99,129.94,13.30384442]
[1726660110491,9.46,129.98,129.94,3.84384442]
[1726660110689,9.46,129.98,129.93,9.46]
[1726660110991,2.9721,130.06,129.93,9.46]
[1726660111195,9.46,129.97,129.93,9.46]
[1726660111594,9.46,129.97,129.87,5.38138966]
[1726660111792,9.46,129.97,129.92,9.46]
[1726660112693,9.46,129.96,129.91,9.46]
[1726660113387,9.46,129.96,129.87,5.38138966]
[1726660113601,9.46,129.96,129.92,9.46]
[1726660116995,301.88453095,130.05,129.92,9.46]
[1726660117192,9.46,129.97,129.92,9.46]
[1726660121299,9.46,129.96,129.91,9.46]
[1726660122798,9.46,129.94,129.91,9.46]
[1726660122990,9.46,129.94,129.89,9.46]
[1726660124506,9.46,129.93,129.87,5.38138966]
[1726660124703,9.46,129.92,129.87,14.84138966]
[1726660125897,3.0143,130.01,129.87,14.84138966]
[1726660126103,9.46,129.91,129.87,14.84138966]
[1726660130498,154.04,129.99,129.87,14.84138966]
[1726660130710,9.46,129.91,129.87,14.84138966]
[1726660135013,9.46,129.9,129.87,3.86028966]
[1726660135204,9.46,129.9,129.86,12.4071]
[1726660135809,9.46,129.9,129.86,16.29722639]
[1726660136001,154.04,129.99,129.86,16.29722639]
[1726660136204,9.46,129.9,129.86,16.29722639]
[1726660137512,154.08,129.98,129.86,12.4071]
[1726660137717,9.46,129.89,129.86,6.74362299]
[1726660139608,9.46,129.87,129.86,5.26982299]
[1726660139812,9.46,129.87,129.86,3.79652299]
[1726660140012,9.46,129.87,129.8,12.3564]
[1726660140314,9.46,129.85,129.8,16.23526927]
[1726660142021,9.46,129.85,129.8,6.77526927]
[1726660142523,2.8892,129.95,129.8,16.23526927]
[1726660142718,9.46,129.86,129.8,16.23526927]
[1726660144424,9.46,129.86,129.81,9.46]
[1726660146520,9.46,129.86,129.8,16.23526927]
[1726660147113,9.46,129.84,129.8,16.23526927]
[1726660155641,9.46,129.82,129.8,6.77526927]
[1726660156134,9.46,129.81,129.8,3.87886927]
[1726660156339,9.46,129.81,129.74,13.9832]
[1726660156636,9.46,129.79,129.74,13.9832]
[1726660159543,9.46,129.78,129.74,4.5232]
[1726660161943,154.18,129.87,129.74,4.5232]
[1726660161944,9.46,129.77,129.74,4.5232]
[1726660162747,9.46,129.78,129.74,4.5232]
[1726660164053,154.18,129.87,129.74,13.9832]
[1726660164354,9.46,129.79,129.74,13.9832]
[1726660164553,9.46,129.79,129.74,17.92566063]
[1726660165450,154.18,129.87,129.74,17.92566063]
[1726660165451,9.46,129.78,129.74,17.92566063]
[1726660165853,9.46,129.78,129.74,8.46566063]
[1726660174555,9.46,129.78,129.74,17.92566063]
[1726660175158,9.46,129.77,129.74,8.46566063]
[1726660181760,9.46,129.76,129.74,8.46566063]
[1726660181962,9.46,129.76,129.74,5.42526063]
[1726660182367,9.46,129.75,129.74,3.94246063]
[1726660182563,9.46,129.75,129.7,9.46]
[1726660182762,9.46,129.75,129.7,13.31855286]
[1726660183161,9.46,129.74,129.7,13.31855286]
[1726660183358,9.46,129.74,129.7,3.85855286]
[1726660183559,9.46,129.74,129.69,9.46]
[1726660183764,9.46,129.74,129.69,13.36906455]
[1726660190374,9.46,129.75,129.71,9.46]
[1726660192171,4.86000001,129.75,129.71,9.46]
[1726660192571,4.86000001,129.75,129.71,13.40283307]
[1726660193477,9.46,129.73,129.71,3.94283307]
[1726660193674,9.46,129.73,129.69,9.46]
[1726660194268,9.46,129.73,129.69,13.30757879]
[1726660194967,9.46,129.72,129.69,3.84757879]
[1726660195170,9.46,129.72,129.68,9.46]
[1726660195368,9.46,129.72,129.68,13.40630387]
[1726660197885,9.46,129.72,129.68,3.94630387]
[1726660198078,9.46,129.72,129.67,9.46]
[1726660198281,9.46,129.72,129.67,13.36426858]
[1726660200082,9.46,129.7,129.67,3.90426858]
[1726660200277,9.46,129.7,129.66,1.5308]
[1726660200886,9.46,129.7,129.66,5.38891272]
[1726660203391,9.46,129.7,129.66,14.84891272]
[1726660203688,9.46,129.7,129.66,10.9908]
[1726660203689,5.56,129.7,129.66,10.9908]
[1726660203988,5.56,129.7,129.66,14.85220871]
[1726660204289,16.1853686,129.81,129.67,9.46]
[1726660204490,9.46,129.73,129.68,9.46]
[1726660207690,9.46,129.72,129.66,5.39220871]
[1726660207887,9.46,129.69,129.66,5.39220871]
[1726660208485,16.1853686,129.81,129.66,5.39220871]
[1726660208486,9.46,129.68,129.66,5.39220871]
[1726660209794,9.46,129.67,129.66,3.86140871]
[1726660210000,9.46,129.67,129.62,9.46]
[1726660210497,9.46,129.67,129.62,13.30232777]
[1726660211699,9.46,129.67,129.63,1.4856]
[1726660212498,9.46,129.67,129.63,10.9456]
[1726660212699,9.46,129.67,129.63,1.4856]
[1726660213300,9.46,129.66,129.63,1.4856]
[1726660214102,9.46,129.65,129.63,1.4856]
[1726660215000,9.46,129.65,129.62,3.84232777]
[1726660215292,9.46,129.65,129.6,9.46]
[1726660215701,9.46,129.65,129.6,13.23095207]
[1726660216403,2.9954,129.74,129.61,9.46]
[1726660216607,9.46,129.67,129.63,9.46]
[1726660217299,9.46,129.67,129.63,13.34412343]
[1726660220396,9.46,129.65,129.63,3.88412343]
[1726660220702,9.46,129.65,129.62,1.4785]
[1726660221101,9.46,129.65,129.62,5.33454067]
[1726660224206,9.46,129.66,129.62,5.33454067]
[1726660226810,9.46,129.65,129.62,5.33454067]
[1726660227008,9.46,129.64,129.62,5.33454067]
[1726660228899,2.9954,129.74,129.62,3.85604067]
[1726660228900,9.46,129.63,129.62,3.85604067]
[1726660229105,9.46,129.63,129.57,9.46]
[1726660229303,9.46,129.63,129.55,2.9632]
[1726660229304,9.46,129.62,129.56,9.46]
[1726660231407,9.46,129.59,129.55,12.4232]
[1726660238022,9.46,129.59,129.55,2.9632]
[1726660238321,9.46,129.58,129.55,2.9632]
[1726660240111,9.46,129.57,129.55,2.9632]
[1726660240724,9.46,129.58,129.55,2.9632]
[1726660241617,2.9354,129.69,129.55,12.4232]
[1726660241819,9.46,129.6,129.55,12.4232]
[1726660242219,9.46,129.6,129.55,16.37483827]
[1726660246224,9.46,129.6,129.55,6.91483827]
[1726660247829,9.46,129.59,129.55,6.91483827]
[1726660251924,157.3554,129.69,129.55,2.9632]
[1726660252131,9.46,129.6,129.55,12.4232]
[1726660252632,9.46,129.6,129.55,16.32418459]
[1726660255732,9.46,129.57,129.55,6.86418459]
[1726660256237,9.46,129.56,129.55,3.90098459]
[1726660256424,9.46,129.56,129.52,9.46]
[1726660257033,9.46,129.56,129.52,3.90407356]
[1726660257232,9.46,129.56,129.51,9.46]
[1726660257726,9.46,129.56,129.51,13.41002201]
[1726660257927,9.46,129.56,129.51,3.95002201]
[1726660258137,9.46,129.56,129.51,9.46]
[1726660258333,9.46,129.56,129.51,13.28955213]
[1726660259326,9.46,129.55,129.51,3.82955213]
[1726660259527,9.46,129.55,129.51,9.46]
[1726660259733,9.46,129.55,129.51,13.31272018]
[1726660261140,9.46,129.54,129.51,3.85272018]
[1726660261432,9.46,129.54,129.49,9.46]
[1726660261636,9.46,129.54,129.49,13.40692438]
[1726660262038,2.9173,129.64,129.52,9.46]
[1726660262242,9.46,129.56,129.52,9.46]
[1726660262739,9.46,129.56,129.52,3.80833892]
[1726660263039,9.46,129.56,129.51,9.46]
[1726660263332,9.46,129.56,129.51,13.31700038]
[1726660264242,9.46,129.54,129.51,3.85700038]
[1726660264843,9.46,129.54,129.49,9.46]
[1726660265033,9.46,129.54,129.49,13.2467116]
[1726660265434,9.46,129.54,129.5,9.46]
[1726660265637,6.46,129.55,129.47,4.3543]
[1726660265835,6.46,129.55,129.51,9.46]
[1726660271744,2.9173,129.64,129.53,9.46]
[1726660272044,9.46,129.57,129.53,9.46]
[1726660273336,9.46,129.56,129.53,9.46]
[1726660273945,9.46,129.56,129.51,9.46]
[1726660275645,9.46,129.55,129.51,9.46]
[1726660276037,9.46,129.55,129.5,9.46]
[1726660276241,9.46,129.54,129.49,9.46]
[1726660276939,9.46,129.53,129.48,9.46]
[1726660281751,9.46,129.53,129.47,8.21765532]
[1726660281944,9.46,129.53,129.48,9.46]
[1726660283850,9.46,129.54,129.49,9.46]
[1726660284645,16.20740401,129.62,129.5,9.46]
[1726660284853,2.63000001,129.56,129.47,4.3543]
[1726660285050,2.63000001,129.56,129.52,9.46]
[1726660286143,9.46,129.57,129.53,9.46]
[1726660286346,19.1233228,129.64,129.53,9.46]
[1726660286548,9.46,129.58,129.54,9.46]
[1726660286849,9.46,129.58,129.54,13.35090056]
[1726660287246,7.46,129.58,129.54,9.46]
[1726660287449,7.46,129.58,129.54,13.27288171]
[1726660291458,19.12253153,129.64,129.54,13.27288171]
[1726660291761,9.46,129.58,129.54,13.27288171]
[1726660292362,16.12253153,129.64,129.56,9.46]
[1726660292668,154.5,129.65,129.58,9.46]
[1726660292869,9.46,129.63,129.58,9.46]
[1726660293070,9.46,129.62,129.58,9.46]
[1726660293374,9.46,129.62,129.58,13.28646655]
[1726660295773,154.48,129.72,129.58,13.28646655]
[1726660295974,154.48,129.72,129.59,9.46]
[1726660296171,9.46,129.63,129.59,13.34678403]
[1726660297369,9.46,129.62,129.59,3.88678403]
[1726660297569,9.46,129.62,129.58,12.413]
[1726660298072,9.46,129.62,129.58,16.36865994]
[1726660298479,1.6826,129.71,129.58,16.36865994]
[1726660298678,1.6826,129.71,129.59,9.46]
[1726660298876,1.6826,129.71,129.6,9.46]
[1726660299080,9.46,129.67,129.62,9.46]
[1726660299378,1.6826,129.71,129.62,9.46]
[1726660299579,9.46,129.68,129.62,9.46]
[1726660302176,154.48,129.72,129.63,9.46]
[1726660302375,154.48,129.72,129.58,2.953]
[1726660302376,9.46,129.69,129.65,9.46]
[1726660302584,9.46,129.69,129.65,13.26065408]
[1726660303078,9.46,129.66,129.65,3.80065408]
[1726660303277,9.46,129.66,129.58,2.953]
[1726660303481,9.46,129.63,129.59,9.46]
[1726660303680,9.46,129.63,129.59,13.27184382]
[1726660310283,9.46,129.64,129.6,9.46]
[1726660310784,9.46,129.65,129.61,9.46]
[1726660310983,9.46,129.65,129.61,13.37886081]
[1726660311584,9.46,129.66,129.62,9.46]
[1726660312885,1.6807,129.71,129.62,9.46]
[1726660313191,9.46,129.67,129.62,9.46]
[1726660314588,9.46,129.67,129.61,3.91886081]
[1726660314794,9.46,129.67,129.62,9.46]
[1726660315097,9.46,129.67,129.62,13.29297823]
[1726660320395,9.46,129.64,129.62,3.83297823]
[1726660320593,9.46,129.63,129.58,12.413]
[1726660321195,9.46,129.62,129.58,12.413]
[1726660321594,9.46,129.62,129.58,10.9346]
[1726660322196,9.46,129.62,129.58,1.4746]
[1726660322489,1.6807,129.71,129.57,1.4443]
[1726660322490,9.46,129.61,129.57,1.4443]
[1726660323897,9.46,129.61,129.57,10.9043]
[1726660324096,9.46,129.61,129.57,1.4443]
[1726660324598,9.46,129.6,129.54,1.4886]
[1726660324902,9.46,129.58,129.54,10.9486]
[1726660325894,9.46,129.58,129.55,9.46]
[1726660327000,9.46,129.61,129.56,9.46]
[1726660327199,16.19053269,129.69,129.57,9.46]
[1726660327401,9.46,129.62,129.57,9.46]
[1726660327697,9.46,129.61,129.56,3.94082878]
[1726660327904,9.46,129.61,129.56,9.46]
[1726660328200,9.46,129.6,129.56,13.27458946]
[1726660329893,14.83,129.62,129.56,3.81458946]
[1726660330094,14.83,129.62,129.54,16.3186]
[1726660330703,14.83,129.62,129.54,20.137818]
[1726660332098,14.83,129.62,129.55,14.83]
[1726660332302,14.83,129.64,129.55,14.83]
[1726660335895,14.83,129.64,129.57,14.83]
[1726660340400,0.7772,129.65,129.57,14.83]
[1726660340401,14.83,129.65,129.58,1.3947]
[1726660348609,0.9067,129.66,129.58,1.3947]
[1726660348610,14.83,129.64,129.58,1.3947]
[1726660349603,14.83,129.64,129.55,14.83]
[1726660349909,9.49,129.6,129.56,9.49]
[1726660353504,9.49,129.59,129.55,1.4058]
[1726660353904,9.49,129.59,129.54,14.797818]
[1726660354209,9.49,129.59,129.54,5.307818]
[1726660354405,9.49,129.59,129.54,14.797818]
[1726660354802,9.49,129.59,129.56,9.49]
[1726660360200,9.49,129.59,129.55,9.49]
[1726660360405,9.49,129.58,129.54,6.740718]
[1726660360611,9.49,129.57,129.54,6.740718]
[1726660361506,9.49,129.56,129.54,3.819218]
[1726660361708,0.7766,129.64,129.53,9.49]
[1726660361911,9.49,129.58,129.53,13.33199922]
[1726660364110,0.7766,129.64,129.54,9.49]
[1726660364413,9.49,129.59,129.54,9.49]
[1726660364609,9.49,129.59,129.54,13.40454979]
[1726660364810,9.49,129.59,129.55,9.49]
[1726660365610,9.49,129.59,129.55,13.35974586]
[1726660366706,0.7766,129.64,129.55,13.35974586]
[1726660366910,9.49,129.61,129.57,9.49]
[1726660371514,0.7766,129.64,129.57,9.49]
[1726660371819,9.49,129.63,129.59,9.49]
[1726660372623,9.49,129.61,129.56,4.3465]
[1726660372818,9.49,129.61,129.56,13.8365]
[1726660373420,17.106846,129.66,129.56,13.8365]
[1726660373621,9.49,129.61,129.56,13.8365]
[1726660375316,9.49,129.61,129.56,4.3465]
[1726660375621,9.49,129.63,129.58,9.49]
[1726660376014,0.9067,129.66,129.59,9.49]
[1726660376217,9.49,129.64,129.6,9.49]
[1726660377623,9.49,129.63,129.6,9.49]
[1726660381828,9.49,129.63,129.59,9.49]
[1726660382132,9.49,129.62,129.57,9.49]
[1726660383529,9.49,129.63,129.57,9.49]
[1726660383925,9.49,129.63,129.59,9.49]
[1726660391943,3.8569,129.62,129.59,9.49]
[1726660392140,9.49,129.63,129.59,9.49]
[1726660393037,9.49,129.62,129.57,13.3482]
[1726660393739,9.49,129.62,129.57,3.8582]
[1726660393940,3.8574,129.6,129.57,3.8582]
[1726660394943,13.3474,129.6,129.57,3.8582]
[1726660399244,3.8577,129.59,129.56,16.2991]
[1726660399447,3.8577,129.59,129.56,5.3598]
[1726660399636,13.3477,129.59,129.56,5.3598]
[1726660401137,13.3476,129.6,129.56,5.3598]
[1726660401342,9.49,129.61,129.56,10.9914]
[1726660402445,13.3474,129.61,129.57,3.8581]
[1726660402645,3.8574,129.61,129.57,3.8581]
[1726660402950,9.49,129.6,129.57,3.8581]
[1726660403352,9.49,129.6,129.57,3.8582]
[1726660404352,13.3474,129.6,129.57,3.8582]
[1726660404853,9.49,129.59,129.57,3.8582]
[1726660406347,9.49,129.59,129.56,3.8584]
[1726660406348,13.3477,129.59,129.56,3.8584]
[1726660406746,13.3477,129.59,129.55,3.86974586]
[1726660406747,9.49,129.57,129.55,3.86974586]
[1726660406946,9.49,129.56,129.53,3.8594]
[1726660407251,9.49,129.56,129.53,7.72717815]
[1726660411748,3.8585,129.57,129.53,7.72717815]
[1726660412052,9.49,129.55,129.53,7.72717815]
[1726660413856,13.3489,129.55,129.53,3.86777815]
[1726660414052,13.3489,129.55,129.52,5.3382]
[1726660414053,9.49,129.54,129.52,5.3382]
[1726660414647,9.49,129.54,129.52,9.29716747]
[1726660415052,9.49,129.54,129.52,7.81856747]
[1726660415755,9.49,129.54,129.52,3.95896747]
[1726660415952,13.3492,129.54,129.51,3.8599]
[1726660416454,13.3492,129.54,129.51,7.80419032]
[1726660416852,9.49,129.54,129.51,7.80419032]
[1726660419051,9.49,129.52,129.51,3.94429032]
[1726660419247,9.49,129.52,129.5,3.8603]
[1726660419851,9.49,129.52,129.5,7.70292157]
[1726660420758,13.3498,129.52,129.5,3.84262157]
[1726660420960,13.3498,129.52,129.49,3.8605]
[1726660421259,9.49,129.51,129.49,3.8605]
[1726660421853,9.49,129.5,129.49,3.8605]
[1726660423159,9.49,129.5,129.48,5.3138]
[1726660423359,9.49,129.5,129.48,3.8608]
[1726660424262,9.49,129.49,129.47,3.8611]
[1726660424455,9.49,129.49,129.44,13.8515]